fUSD/lending_fUSD_20250616
["ID","MTS","AMOUNT","RATE_DAILY","PERIOD"]
[366169717,1750097469507,-11675.58,0.00016131,2]
[366169718,1750097469517,-490.0,0.00016131,2]
[366169719,1750097469528,-2327.4,0.00016131,2]
[366169720,1750097469541,-1268.57,0.00016131,2]
[366169721,1750097469551,-151.0,0.00016132,2]
[366169722,1750097469561,-151.0,0.00016132,2]
[366169723,1750097469572,-151.0,0.00016132,2]
[366169724,1750097469582,-225.027572,0.00016132,2]
[366169725,1750097469592,-225.027572,0.00016132,2]
[366169726,1750097469601,-214.3681203,0.00016132,2]
[366169727,1750097469611,-151.0,0.00016132,2]
[366169728,1750097469622,-151.0,0.00016132,2]
[366169729,1750097469633,-151.0,0.00016132,2]
[366169730,1750097469643,-151.397542,0.00016132,2]
[366169731,1750097469653,-151.0,0.00016132,2]
[366169732,1750097469663,-154.884533,0.00016132,2]
[366169733,1750097469672,-1044.17,0.00016132,2]
[366169734,1750097469682,-151.0,0.00016132,2]
[366169735,1750097469691,-967.07,0.00016132,2]
[366169736,1750097469701,-490.0,0.00016132,2]
[366169737,1750097469711,-490.0,0.00016132,2]
[366169738,1750097469722,-1242.8,0.00016132,2]
[366169739,1750097469731,-490.0,0.00016132,2]
[366169740,1750097469741,-490.0,0.00016132,2]
[366169741,1750097469751,-490.0,0.00016132,2]
[366169742,1750097469761,-1064.6,0.00016132,2]
[366169743,1750097469771,-818.38,0.00016132,2]
[366169744,1750097469781,-1034.52,0.00016132,2]
[366169745,1750097469791,-1057.59,0.00016132,2]
[366169746,1750097469801,-490.0,0.00016132,2]
[366169747,1750097469810,-345.868883,0.00016132,2]
[366169748,1750097469820,-345.868883,0.00016132,2]
[366169749,1750097469829,-490.0,0.00016132,2]
[366169750,1750097469840,-306.292509,0.00016132,2]
[366169751,1750097469850,-306.292509,0.00016132,2]
[366169752,1750097469860,-294.871409,0.00016132,2]
[366169753,1750097469870,-294.871409,0.00016132,2]
[366169754,1750097469880,-151.0,0.00016132,2]
[366169755,1750097469889,-151.0,0.00016132,2]
[366169756,1750097469899,-423.936989,0.00016132,2]
[366169757,1750097469908,-423.936989,0.00016132,2]
[366169758,1750097469919,-151.0,0.00016132,2]
[366169759,1750097469928,-151.0,0.00016132,2]
[366169760,1750097469939,-151.0,0.00016133,2]
[366169761,1750097469950,-276.582344,0.00016133,2]
[366169762,1750097469960,-151.0,0.00016133,2]
[366169763,1750097469970,-151.0,0.00016133,2]
[366169764,1750097469980,-151.0,0.00016133,2]
[366169765,1750097469990,-151.0,0.00016133,2]
[366169766,1750097470001,-151.0,0.00016133,2]
[366169767,1750097470011,-216.945624,0.00016133,2]
[366169768,1750097470020,-151.0,0.00016133,2]
[366169769,1750097470031,-151.0,0.00016133,2]
[366169770,1750097470042,-198.567034,0.00016133,2]
[366169771,1750097470052,-198.567034,0.00016133,2]
[366169772,1750097470062,-151.0,0.00016133,2]
[366169773,1750097470072,-228.986909,0.00016133,2]
[366169774,1750097470083,-151.0,0.00016133,2]
[366169775,1750097470094,-151.0,0.00016133,2]
[366169776,1750097470104,-529.193119,0.00016133,2]
[366169777,1750097470114,-481.466804,0.00016133,2]
[366169778,1750097470124,-481.466804,0.00016133,2]
[366169779,1750097470134,-421.70699,0.00016133,2]
[366169780,1750097470144,-421.70699,0.00016133,2]
[366169781,1750097470154,-151.0,0.00016133,2]
[366169782,1750097470164,-293.278158,0.00016133,2]
[366169783,1750097470175,-293.278158,0.00016133,2]
[366169784,1750097470185,-500.0,0.00016137,2]
[366169785,1750097470195,-150.0,0.0001614,2]
[366169786,1750097470205,-150.0,0.00016141,2]
[366169787,1750097470216,-150.0,0.00016141,2]
[366169788,1750097470226,-1000.0,0.00016145,2]
[366169789,1750097470236,-200.0,0.00016151,3]
[366169790,1750097470245,-500.0,0.00016164,2]
[366169791,1750097470255,-150.0,0.00016164,2]
[366169792,1750097470265,-150.0,0.00016164,2]
[366169793,1750097470276,-210.00689634,0.00016165,2]
[366169794,1750097470285,-2000.0,0.00016169,2]
[366169795,1750097470295,-500.0,0.00016169,2]
[366169796,1750097470304,-1000.0,0.0001617,2]
[366169797,1750097470314,-162.0,0.0001617,2]
[366169798,1750097470323,-1198.0,0.0001617,2]
[366169799,1750097470333,-162.0,0.0001617,2]
[366169800,1750097470342,-1198.0,0.0001617,2]
[366169801,1750097470351,-151.0,0.0001617,2]
[366169802,1750097470362,-258.99708573,0.0001617,2]
[366169803,1750097470372,-1198.0,0.0001617,2]
[366169804,1750097470381,-151.0,0.0001617,2]
[366169805,1750097470391,-1198.0,0.0001617,2]
[366169806,1750097470400,-151.0,0.0001617,2]
[366169807,1750097470410,-154.0,0.0001617,2]
[366169808,1750097470420,-1198.0,0.0001617,2]
[366169809,1750097470430,-151.0,0.0001617,2]
[366169810,1750097470439,-154.0,0.0001617,2]
[366169811,1750097470449,-1198.0,0.0001617,2]
[366169812,1750097470459,-151.0,0.0001617,2]
[366169813,1750097470468,-1198.0,0.0001617,2]
[366169814,1750097470478,-154.0,0.0001617,2]
[366169815,1750097470487,-151.0,0.0001617,2]
[366169816,1750097470497,-154.0,0.0001617,2]
[366169817,1750097470507,-1198.0,0.0001617,2]
[366169818,1750097470516,-151.0,0.0001617,2]
[366169819,1750097470526,-154.0,0.0001617,2]
[366169820,1750097470540,-1198.0,0.0001617,2]
[366169821,1750097470549,-151.0,0.0001617,2]
[366169822,1750097470559,-154.0,0.0001617,2]
[366169823,1750097470569,-1198.0,0.0001617,2]
[366169824,1750097470578,-151.0,0.0001617,2]
[366169825,1750097470588,-154.0,0.0001617,2]
[366169826,1750097470598,-1198.0,0.0001617,2]
[366169827,1750097470608,-151.0,0.0001617,2]
[366169828,1750097470623,-154.0,0.0001617,2]
[366169829,1750097470634,-1198.0,0.0001617,2]
[366169830,1750097470644,-151.0,0.0001617,2]
[366169831,1750097470654,-154.0,0.0001617,2]
[366169832,1750097470663,-1198.0,0.0001617,2]
[366169833,1750097470673,-151.0,0.0001617,2]
[366169834,1750097470683,-154.0,0.0001617,2]
[366169835,1750097470692,-1198.0,0.0001617,2]
[366169836,1750097470702,-151.0,0.0001617,2]
[366169837,1750097470711,-1198.0,0.0001617,2]
[366169838,1750097470721,-154.0,0.0001617,2]
[366169839,1750097470732,-151.0,0.0001617,2]
[366169840,1750097470742,-1198.0,0.0001617,2]
[366169841,1750097470753,-154.0,0.0001617,2]
[366169842,1750097470763,-151.0,0.0001617,2]
[366169843,1750097470773,-1198.0,0.0001617,2]
[366169844,1750097470783,-154.0,0.0001617,2]
[366169845,1750097470793,-154.0,0.0001617,2]
[366169846,1750097470803,-1198.0,0.0001617,2]
[366169847,1750097470813,-151.0,0.0001617,2]
[366169848,1750097470823,-154.0,0.0001617,2]
[366169849,1750097470832,-1198.0,0.0001617,2]
[366169850,1750097470842,-154.0,0.0001617,2]
[366169851,1750097470853,-1198.0,0.0001617,2]
[366169852,1750097470864,-154.0,0.0001617,2]
[366169853,1750097470875,-1198.0,0.0001617,2]
[366169854,1750097470885,-154.0,0.0001617,2]
[366169855,1750097470895,-1198.0,0.0001617,2]
[366169856,1750097470905,-154.0,0.0001617,2]
[366169857,1750097470915,-1198.0,0.0001617,2]
[366169858,1750097470925,-154.0,0.0001617,2]
[366169859,1750097470935,-1198.0,0.0001617,2]
[366169860,1750097470945,-151.0,0.0001617,2]
[366169861,1750097470955,-154.0,0.0001617,2]
[366169862,1750097471064,-151.0,0.0001617,2]
[366169863,1750097471073,-1198.0,0.0001617,2]
[366169864,1750097471083,-151.0,0.0001617,2]
[366169865,1750097471092,-1198.0,0.0001617,2]
[366169866,1750097471101,-151.0,0.0001617,2]
[366169867,1750097471111,-1198.0,0.0001617,2]
[366169868,1750097471121,-151.0,0.0001617,2]
[366169869,1750097471130,-1198.0,0.0001617,2]
[366169870,1750097471140,-151.0,0.0001617,2]
[366169871,1750097471149,-1198.0,0.0001617,2]
[366169872,1750097471158,-151.0,0.0001617,2]
[366169873,1750097471168,-1198.0,0.0001617,2]
[366169874,1750097471177,-151.0,0.0001617,2]
[366169875,1750097471186,-1198.0,0.0001617,2]
[366169876,1750097471195,-150.0,0.00016171,2]
[366169877,1750097471204,-150.0,0.00016172,2]
[366169878,1750097471214,-500.26732313,0.00016173,2]
[366169879,1750097471223,-150.0,0.00016175,2]
[366169880,1750097471232,-150.0,0.00016181,2]
[366169881,1750097471241,-2715.12328229,0.00016182,2]
[366169882,1750097471250,-150.0,0.00016182,2]
[366169883,1750097471262,-150.0,0.00016185,2]
[366169884,1750097471271,-331.99689195,0.0001619,2]
[366169885,1750097471281,-151.0,0.00016192,2]
[366169886,1750097471290,-300.0,0.00016192,2]
[366169887,1750097471299,-151.0,0.000162,2]
[366169888,1750097471310,-151.0,0.000162,2]
[366169889,1750097471319,-151.0,0.000162,2]
[366169890,1750097471328,-152.362097,0.000162,2]
[366169891,1750097471338,-152.362097,0.000162,2]
[366169892,1750097471347,-151.0,0.000162,2]
[366169893,1750097471357,-151.0,0.000162,2]
[366169894,1750097471366,-4155.92030306,0.000162,2]
[366169895,1750097471376,-4155.92030282,0.000162,2]
[366169896,1750097471385,-4155.92030282,0.000162,2]
[366169897,1750097471395,-4155.92030282,0.000162,2]
[366169898,1750097471404,-4155.92030282,0.000162,2]
[366169899,1750097471414,-4155.92030282,0.000162,2]
[366169900,1750097471423,-4155.92030282,0.000162,2]
[366169901,1750097471432,-4155.92030282,0.000162,2]
[366169902,1750097471441,-4155.92030282,0.000162,2]
[366169903,1750097471452,-150.0,0.00016203,2]
[366169904,1750097471461,-153.84221188,0.00016204,2]
[366169905,1750097471471,-151.0,0.0001621,2]
[366169906,1750097471481,-151.0,0.0001621,2]
[366169907,1750097471491,-286.76299,0.0001621,2]
[366169908,1750097471500,-151.0,0.0001621,2]
[366169909,1750097471514,-193.35277,0.0001621,2]
[366169910,1750097471523,-193.35277,0.0001621,2]
[366169911,1750097471533,-151.0,0.0001621,2]
[366169912,1750097471546,-151.0,0.0001621,2]
[366169913,1750097471555,-151.0,0.0001621,2]
[366169914,1750097471566,-4155.92030282,0.0001621,2]
[366169915,1750097471575,-150.0,0.00016212,2]
[366169916,1750097471587,-594.21,0.00016214,2]
[366169917,1750097471597,-685.48,0.00016214,2]
[366169918,1750097471606,-911.86,0.00016214,2]
[366169919,1750097471616,-490.0,0.00016214,2]
[366169920,1750097471625,-554.31,0.00016214,2]
[366169921,1750097471635,-894.67,0.00016214,2]
[366169922,1750097471644,-490.0,0.00016214,2]
[366169923,1750097471654,-710.37,0.00016214,2]
[366169924,1750097471665,-4120.71,0.00016214,2]
[366169925,1750097471674,-578.79,0.00016214,2]
[366169926,1750097471683,-562.72,0.00016214,2]
[366169927,1750097471693,-1354.53,0.00016214,2]
[366169928,1750097471702,-607.35,0.00016214,2]
[366169929,1750097471711,-2707.8,0.00016214,2]
[366169930,1750097471720,-601.82,0.00016214,2]
[366169931,1750097471730,-490.0,0.00016214,2]
[366169932,1750097471739,-490.0,0.00016214,2]
[366169933,1750097471747,-829.3,0.00016214,2]
[366169934,1750097471758,-2613.83,0.00016214,2]
[366169935,1750097471767,-507.51,0.00016214,2]
[366169936,1750097471777,-796.34,0.00016214,2]
[366169937,1750097471788,-824.05,0.00016214,2]
[366169938,1750097471798,-753.23,0.00016214,2]
[366169939,1750097471808,-490.0,0.00016214,2]
[366169940,1750097471818,-641.31,0.00016214,2]
[366169941,1750097471827,-490.0,0.00016214,2]
[366169942,1750097471836,-890.33,0.00016214,2]
[366169943,1750097471846,-710.77,0.00016214,2]
[366169944,1750097471856,-677.09,0.00016214,2]
[366169945,1750097471865,-797.95,0.00016215,2]
[366169946,1750097471875,-490.0,0.00016215,2]
[366169947,1750097471884,-490.0,0.00016215,2]
[366169948,1750097471894,-490.0,0.00016215,2]
[366169949,1750097471904,-321.72594774,0.00016215,2]
[366169950,1750097471914,-490.0,0.00016215,2]
[366169951,1750097471923,-490.0,0.00016215,2]
[366169952,1750097471932,-544.11,0.00016215,2]
[366169953,1750097471942,-250.0,0.00016215,2]
[366169954,1750097471951,-490.0,0.00016215,2]
[366169955,1750097471961,-490.0,0.00016215,2]
[366169956,1750097471970,-490.0,0.00016215,2]
[366169957,1750097471980,-284.38708782,0.00016215,2]
[366169958,1750097471989,-490.0,0.00016215,2]
[366169959,1750097472000,-490.0,0.00016215,2]
[366169960,1750097472011,-718.04,0.00016215,2]
[366169961,1750097472021,-490.0,0.00016215,2]
[366169962,1750097472030,-438.09,0.00016215,2]
[366169963,1750097472038,-814.42,0.00016215,2]
[366169964,1750097472047,-490.0,0.00016215,2]
[366169965,1750097472056,-490.0,0.00016215,2]
[366169966,1750097472065,-490.0,0.00016215,2]
[366169967,1750097472075,-423.39010737,0.00016215,2]
[366169968,1750097472085,-490.0,0.00016215,2]
[366169969,1750097472095,-490.0,0.00016215,2]
[366169970,1750097472105,-770.9,0.00016215,2]
[366169971,1750097472117,-490.0,0.00016215,2]
[366169972,1750097472128,-490.0,0.00016215,2]
[366169973,1750097472138,-490.0,0.00016215,2]
[366169974,1750097472147,-490.0,0.00016215,2]
[366169975,1750097472157,-490.0,0.00016215,2]
[366169976,1750097472166,-490.0,0.00016215,2]
[366169977,1750097472175,-490.0,0.00016215,2]
[366169978,1750097472184,-490.0,0.00016215,2]
[366169979,1750097472194,-599.87,0.00016215,2]
[366169980,1750097472203,-490.0,0.00016215,2]
[366169981,1750097472212,-490.0,0.00016215,2]
[366169982,1750097472221,-168.12916126,0.00016215,2]
[366169983,1750097472231,-490.0,0.00016215,2]
[366169984,1750097472240,-490.0,0.00016215,2]
[366169985,1750097472249,-490.0,0.00016215,2]
[366169986,1750097472261,-756.1,0.00016215,2]
[366169987,1750097472270,-858.35,0.00016215,2]
[366169988,1750097472280,-490.0,0.00016215,2]
[366169989,1750097472289,-490.0,0.00016215,2]
[366169990,1750097472299,-1269.171004,0.00016215,2]
[366169991,1750097472308,-490.0,0.00016215,2]
[366169992,1750097472318,-490.0,0.00016215,2]
[366169993,1750097472327,-1156.22,0.00016215,2]
[366169994,1750097472336,-490.0,0.00016215,2]
[366169995,1750097472346,-530.95,0.00016215,2]
[366169996,1750097472355,-490.0,0.00016215,2]
[366169997,1750097472365,-490.0,0.00016215,2]
[366169998,1750097472374,-490.0,0.00016215,2]
[366169999,1750097472384,-490.0,0.00016215,2]
[366170000,1750097472394,-800.605836,0.00016215,2]
[366170001,1750097472403,-826.14,0.00016215,2]
[366170002,1750097472412,-490.0,0.00016215,2]
[366170003,1750097472421,-490.0,0.00016215,2]
[366170004,1750097472431,-490.0,0.00016215,2]
[366170005,1750097472440,-172.37326,0.00016215,2]
[366170006,1750097472450,-490.0,0.00016215,2]
[366170007,1750097472459,-490.0,0.00016215,2]
[366170008,1750097472468,-490.0,0.00016215,2]
[366170009,1750097472477,-490.0,0.00016215,2]
[366170010,1750097472487,-490.0,0.00016215,2]
[366170011,1750097472496,-490.0,0.00016215,2]
[366170012,1750097472507,-490.0,0.00016215,2]
[366170013,1750097472515,-490.0,0.00016215,2]
[366170014,1750097472525,-1153.5,0.00016215,2]
[366170015,1750097472534,-151.0,0.00016215,2]
[366170016,1750097472549,-151.0,0.00016215,2]
[366170017,1750097472559,-490.0,0.00016215,2]
[366170018,1750097472568,-648.75,0.00016215,2]
[366170019,1750097472577,-992.9,0.00016215,2]
[366170020,1750097472588,-758.65,0.00016215,2]
[366170021,1750097472598,-490.0,0.00016215,2]
[366170022,1750097472607,-151.0,0.00016215,2]
[366170023,1750097472617,-490.0,0.00016215,2]
[366170024,1750097472626,-490.0,0.00016215,2]
[366170025,1750097472635,-151.0,0.00016215,2]
[366170026,1750097472645,-152.554459,0.00016215,2]
[366170027,1750097472655,-151.0,0.00016215,2]
[366170028,1750097472664,-490.0,0.00016215,2]
[366170029,1750097472673,-496.78380565,0.00016215,2]
[366170030,1750097472682,-490.0,0.00016215,2]
[366170031,1750097472691,-842.2,0.00016215,2]
[366170032,1750097472700,-490.0,0.00016215,2]
[366170033,1750097472710,-490.0,0.00016215,2]
[366170034,1750097472718,-1252.4,0.00016215,2]
[366170035,1750097472728,-490.0,0.00016215,2]
[366170036,1750097472740,-730.56,0.00016215,2]
[366170037,1750097472751,-516.24,0.00016215,2]
[366170038,1750097472768,-989.93,0.00016215,2]
[366170039,1750097472778,-490.0,0.00016215,2]
[366170040,1750097472788,-151.0,0.00016215,2]
[366170041,1750097472799,-672.45,0.00016215,2]
[366170042,1750097472808,-1119.59,0.00016215,2]
[366170043,1750097472818,-490.0,0.00016215,2]
[366170044,1750097472827,-718.73,0.00016215,2]
[366170045,1750097472836,-490.0,0.00016215,2]
[366170046,1750097472845,-952.43,0.00016215,2]
[366170047,1750097472855,-490.0,0.00016215,2]
[366170048,1750097472863,-1345.75,0.00016215,2]
[366170049,1750097472873,-490.0,0.00016215,2]
[366170050,1750097472884,-490.0,0.00016215,2]
[366170051,1750097472894,-490.0,0.00016215,2]
[366170052,1750097472905,-490.0,0.00016215,2]
[366170053,1750097472915,-567.46,0.00016215,2]
[366170054,1750097472924,-490.0,0.00016215,2]
[366170055,1750097472934,-551.79,0.00016215,2]
[366170056,1750097472945,-490.0,0.00016215,2]
[366170057,1750097472955,-490.0,0.00016215,2]
[366170058,1750097472966,-490.0,0.00016215,2]
[366170059,1750097472975,-490.0,0.00016215,2]
[366170060,1750097472985,-1135.62,0.00016215,2]
[366170061,1750097472994,-826.68,0.00016215,2]
[366170062,1750097473004,-895.74,0.00016215,2]
[366170063,1750097473013,-4910.71,0.00016215,2]
[366170064,1750097473023,-490.0,0.00016215,2]
[366170065,1750097473032,-2461.85,0.00016215,2]
[366170066,1750097473041,-1093.74,0.00016215,2]
[366170067,1750097473051,-294.15796,0.00016215,2]
[366170068,1750097473061,-490.0,0.00016215,2]
[366170069,1750097473070,-717.88,0.00016215,2]
[366170070,1750097473080,-294.15796,0.00016215,2]
[366170071,1750097473091,-796.78,0.00016215,2]
[366170072,1750097473100,-625.08,0.00016215,2]
[366170073,1750097473108,-1647.18,0.00016215,2]
[366170074,1750097473118,-543.83,0.00016215,2]
[366170075,1750097473129,-490.0,0.00016215,2]
[366170076,1750097473138,-1130.31,0.00016215,2]
[366170077,1750097473147,-1081.71,0.00016215,2]
[366170078,1750097473157,-490.0,0.00016215,2]
[366170079,1750097473167,-417.859807,0.00016215,2]
[366170080,1750097473177,-1991.64,0.00016215,2]
[366170081,1750097473186,-490.0,0.00016215,2]
[366170082,1750097473197,-829.21,0.00016215,2]
[366170083,1750097473208,-417.859807,0.00016215,2]
[366170084,1750097473218,-862.87,0.00016215,2]
[366170085,1750097473228,-1235.02,0.00016215,2]
[366170086,1750097473237,-690.88,0.00016215,2]
[366170087,1750097473246,-490.0,0.00016215,2]
[366170088,1750097473256,-1017.88,0.00016215,2]
[366170089,1750097473267,-490.0,0.00016215,2]
[366170090,1750097473276,-1749.64,0.00016215,2]
[366170091,1750097473285,-490.0,0.00016215,2]
[366170092,1750097473294,-490.0,0.00016215,2]
[366170093,1750097473303,-490.0,0.00016215,2]
[366170094,1750097473312,-711.65,0.00016215,2]
[366170095,1750097473321,-2184.74,0.00016215,2]
[366170096,1750097473330,-490.0,0.00016215,2]
[366170097,1750097473340,-1526.44,0.00016215,2]
[366170098,1750097473350,-490.0,0.00016215,2]
[366170099,1750097473358,-490.0,0.00016215,2]
[366170100,1750097473367,-1234.25,0.00016215,2]
[366170101,1750097473376,-213.97738582,0.00016215,2]
[366170102,1750097473386,-2114.77,0.00016215,2]
[366170103,1750097473395,-705.05,0.00016215,2]
[366170104,1750097473403,-3019.32,0.00016215,2]
[366170105,1750097473411,-2901.48,0.00016215,2]
[366170106,1750097473419,-490.0,0.00016215,2]
[366170107,1750097473429,-151.0,0.00016215,2]
[366170108,1750097473438,-920.09,0.00016215,2]
[366170109,1750097473447,-3394.88,0.00016215,2]
[366170110,1750097473455,-1259.21,0.00016215,2]
[366170111,1750097473465,-151.0,0.00016215,2]
[366170112,1750097473474,-747.22,0.00016215,2]
[366170113,1750097473483,-917.9,0.00016215,2]
[366170114,1750097473492,-525.08,0.00016215,2]
[366170115,1750097473501,-490.0,0.00016215,2]
[366170116,1750097473512,-881.3,0.00016215,2]
[366170117,1750097473521,-959.79,0.00016215,2]
[366170118,1750097473530,-3957.31,0.00016215,2]
[366170119,1750097473543,-2591.73,0.00016215,2]
[366170120,1750097473552,-490.0,0.00016215,2]
[366170121,1750097473562,-1178.34,0.00016215,2]
[366170122,1750097473571,-1570.26,0.00016215,2]
[366170123,1750097473581,-1249.99,0.00016215,2]
[366170124,1750097473591,-1442.17,0.00016215,2]
[366170125,1750097473602,-816.12,0.00016215,2]
[366170126,1750097473612,-559.14,0.00016215,2]
[366170127,1750097473622,-705.02,0.00016215,2]
[366170128,1750097473632,-1583.7,0.00016215,2]
[366170129,1750097473643,-522.70677101,0.00016215,2]
[366170130,1750097473654,-490.0,0.00016215,2]
[366170131,1750097473665,-660.21,0.00016215,2]
[366170132,1750097473675,-933.55,0.00016215,2]
[366170133,1750097473684,-572.2,0.00016215,2]
[366170134,1750097473694,-1064.83,0.00016215,2]
[366170135,1750097473703,-1877.29,0.00016215,2]
[366170136,1750097473713,-490.0,0.00016215,2]
[366170137,1750097473722,-5808.97,0.00016215,2]
[366170138,1750097473732,-558.26571242,0.00016215,2]
[366170139,1750097473741,-2003.01,0.00016215,2]
[366170140,1750097473751,-490.0,0.00016215,2]
[366170141,1750097473760,-490.0,0.00016215,2]
[366170142,1750097473770,-1016.09,0.00016215,2]
[366170143,1750097473779,-490.0,0.00016215,2]
[366170144,1750097473789,-1379.16,0.00016215,2]
[366170145,1750097473799,-543.98,0.00016215,2]
[366170146,1750097473808,-5973.49,0.00016215,2]
[366170147,1750097473818,-556.11,0.00016215,2]
[366170148,1750097473827,-583.93,0.00016215,2]
[366170149,1750097473837,-2191.82,0.00016215,2]
[366170150,1750097473846,-2541.52,0.00016215,2]
[366170151,1750097473856,-1589.64,0.00016215,2]
[366170152,1750097473866,-1169.98,0.00016215,2]
[366170153,1750097473876,-2216.25,0.00016215,2]
[366170154,1750097473886,-4248.73,0.00016215,2]
[366170155,1750097473897,-490.0,0.00016215,2]
[366170156,1750097473907,-651.19,0.00016215,2]
[366170157,1750097473916,-580.96,0.00016215,2]
[366170158,1750097473926,-707.97,0.00016215,2]
[366170159,1750097473936,-490.0,0.00016215,2]
[366170160,1750097473946,-1098.11,0.00016215,2]
[366170161,1750097473957,-748.31,0.00016215,2]
[366170162,1750097473967,-695.28,0.00016215,2]
[366170163,1750097473976,-1609.92,0.00016215,2]
[366170164,1750097473987,-986.22,0.00016215,2]
[366170165,1750097473997,-490.0,0.00016215,2]
[366170166,1750097474008,-490.0,0.00016215,2]
[366170167,1750097474018,-490.0,0.00016215,2]
[366170168,1750097474028,-908.9,0.00016215,2]
[366170169,1750097474038,-593.17,0.00016215,2]
[366170170,1750097474047,-1730.21,0.00016215,2]
[366170171,1750097474057,-2098.49,0.00016215,2]
[366170172,1750097474066,-1940.76,0.00016215,2]
[366170173,1750097474077,-490.0,0.00016215,2]
[366170174,1750097474086,-538.8,0.00016215,2]
[366170175,1750097474096,-597.7,0.00016215,2]
[366170176,1750097474106,-490.0,0.00016215,2]
[366170177,1750097474116,-490.0,0.00016215,2]
[366170178,1750097474126,-1456.14,0.00016215,2]
[366170179,1750097474136,-571.68,0.00016215,2]
[366170180,1750097474145,-706.67,0.00016215,2]
[366170181,1750097474154,-2767.0,0.00016215,2]
[366170182,1750097474164,-2318.25,0.00016215,2]
[366170183,1750097474174,-550.15,0.00016215,2]
[366170184,1750097474183,-569.59,0.00016215,2]
[366170185,1750097474193,-1192.81,0.00016215,2]
[366170186,1750097474203,-561.67,0.00016215,2]
[366170187,1750097474213,-4911.12,0.00016215,2]
[366170188,1750097474223,-13414.35,0.00016215,2]
[366170189,1750097474233,-3575.07,0.00016215,2]
[366170190,1750097474242,-5130.5,0.00016215,2]
[366170191,1750097474252,-490.0,0.00016215,2]
[366170192,1750097474262,-690.53,0.00016215,2]
[366170193,1750097474271,-490.0,0.00016215,2]
[366170194,1750097474281,-490.0,0.00016215,2]
[366170195,1750097474291,-490.0,0.00016215,2]
[366170196,1750097474300,-1923.82,0.00016215,2]
[366170197,1750097474310,-151.0,0.00016216,2]
[366170198,1750097474319,-151.0,0.00016216,2]
[366170199,1750097474329,-151.0,0.00016216,2]
[366170200,1750097474338,-151.0,0.00016216,2]
[366170201,1750097474348,-151.0,0.00016216,2]
[366170202,1750097474357,-151.0,0.00016216,2]
[366170203,1750097474367,-151.0,0.00016216,2]
[366170204,1750097474376,-490.0,0.00016216,2]
[366170205,1750097474386,-151.0,0.00016216,2]
[366170206,1750097474396,-490.0,0.00016216,2]
[366170207,1750097474405,-490.0,0.00016216,2]
[366170208,1750097474414,-490.0,0.00016216,2]
[366170209,1750097474423,-985.41,0.00016216,2]
[366170210,1750097474433,-490.0,0.00016216,2]
[366170211,1750097474442,-490.0,0.00016216,2]
[366170212,1750097474452,-490.0,0.00016216,2]
[366170213,1750097474461,-490.0,0.00016216,2]
[366170214,1750097474471,-490.0,0.00016216,2]
[366170215,1750097474480,-490.0,0.00016216,2]
[366170216,1750097474490,-490.0,0.00016216,2]